[Event "*** Qualifier 3: Titled Tuesday 3|2 Blitz"]
[Site "Chess.com"]
[Date "2017.04.18"]
[Round "6"]
[White "DryCounty"]
[Black "stefanodinn"]
[Result "1-0"]
[WhiteElo "2445"]
[BlackElo "2188"]
[TimeControl "180+2"]
[EndTime "14:18:18 PDT"]
[Termination "DryCounty won by resignation"]

1. e4 {[%clk 0:03:02]} 1... e5 {[%clk 0:02:57.6]} 2. Nf3 {[%clk 0:03:02.5]} 2...
Nc6 {[%clk 0:02:58.7]} 3. d4 {[%clk 0:03:03.6]} 3... exd4 {[%clk 0:02:58.8]} 4.
Bc4 {[%clk 0:03:04.6]} 4... Bc5 {[%clk 0:02:50.3]} 5. O-O {[%clk 0:03:04.6]}
5... d6 {[%clk 0:02:48.3]} 6. c3 {[%clk 0:03:05.1]} 6... dxc3 {[%clk 0:02:43.5]}
7. Qb3 {[%clk 0:03:04.9]} 7... Qd7 {[%clk 0:02:34.8]} 8. Re1 {[%clk 0:03:04.2]}
8... Kf8 {[%clk 0:01:33.5]} 9. Qc2 {[%clk 0:02:33.5]} 9... Ne5 {[%clk
0:00:52.8]} 10. Nxe5 {[%clk 0:02:30.7]} 10... dxe5 {[%clk 0:00:53.6]} 11. Nxc3
{[%clk 0:02:31.7]} 11... c6 {[%clk 0:00:41.4]} 12. a3 {[%clk 0:02:20.4]} 12...
Nf6 {[%clk 0:00:40.3]} 13. Bg5 {[%clk 0:02:18]} 13... Ng4 {[%clk 0:00:33.9]} 14.
Rad1 {[%clk 0:02:05.6]} 14... Bd4 {[%clk 0:00:31.2]} 15. h3 {[%clk 0:02:00.1]}
15... Nxf2 {[%clk 0:00:22.6]} 16. Qxf2 {[%clk 0:01:51.4]} 16... Bxf2+ {[%clk
0:00:22.8]} 17. Kxf2 {[%clk 0:01:51.9]} 17... f6 {[%clk 0:00:10.1]} 18. Rxd7
{[%clk 0:01:51.7]} 18... Bxd7 {[%clk 0:00:11.1]} 19. Be3 {[%clk 0:01:52.8]}
19... b6 {[%clk 0:00:10.3]} 20. Rd1 {[%clk 0:01:53.2]} 20... Ke7 {[%clk
0:00:10.7]} 21. b4 {[%clk 0:01:51.2]} 21... Rhd8 {[%clk 0:00:10]} 22. Rc1 {[%clk
0:01:51]} 22... Be6 {[%clk 0:00:10.1]} 23. Be2 {[%clk 0:01:51.9]} 23... Rac8
{[%clk 0:00:07.7]} 24. Na4 {[%clk 0:01:48.2]} 24... Bd7 {[%clk 0:00:05.7]} 25.
Nb2 {[%clk 0:01:48.1]} 25... Be6 {[%clk 0:00:06.4]} 26. a4 {[%clk 0:01:44.4]}
26... Rc7 {[%clk 0:00:06]} 27. a5 {[%clk 0:01:44.1]} 27... bxa5 {[%clk
0:00:06.4]} 28. bxa5 {[%clk 0:01:44.1]} 28... Rb8 {[%clk 0:00:07.9]} 29. Na4
{[%clk 0:01:44]} 29... Rb4 {[%clk 0:00:07.1]} 30. Nc5 {[%clk 0:01:43.7]} 30...
Bf7 {[%clk 0:00:07]} 31. Na6 {[%clk 0:01:43.6]} 1-0

[Event "*** Qualifier 3: Titled Tuesday 3|2 Blitz"]
[Site "Chess.com"]
[Date "2017.04.18"]
[Round "6"]
[White "jefferyx"]
[Black "Cryptochess"]
[Result "1-0"]
[WhiteElo "2615"]
[BlackElo "2472"]
[TimeControl "180+2"]
[EndTime "14:18:19 PDT"]
[Termination "jefferyx won on time"]

1. e4 {[%clk 0:02:36.1]} 1... d6 {[%clk 0:03:01.2]} 2. d4 {[%clk 0:02:37.4]}
2... Nf6 {[%clk 0:03:03]} 3. Nc3 {[%clk 0:02:39.3]} 3... g6 {[%clk 0:03:04.7]}
4. Nf3 {[%clk 0:02:40.9]} 4... Bg7 {[%clk 0:03:06.2]} 5. Be2 {[%clk 0:02:42.8]}
5... O-O {[%clk 0:03:07.8]} 6. O-O {[%clk 0:02:44.4]} 6... Bg4 {[%clk
0:03:08.3]} 7. e5 {[%clk 0:02:38.9]} 7... Nfd7 {[%clk 0:03:03.8]} 8. h3 {[%clk
0:02:35.2]} 8... Bxf3 {[%clk 0:02:59.1]} 9. Bxf3 {[%clk 0:02:37.1]} 9... c6
{[%clk 0:03:00.7]} 10. exd6 {[%clk 0:02:35.3]} 10... exd6 {[%clk 0:03:01.7]} 11.
d5 {[%clk 0:02:36.9]} 11... c5 {[%clk 0:02:47.7]} 12. Ne4 {[%clk 0:02:29.9]}
12... Ne5 {[%clk 0:02:48.6]} 13. Be2 {[%clk 0:02:28.8]} 13... Re8 {[%clk
0:02:45.6]} 14. Re1 {[%clk 0:02:18.8]} 14... Qc7 {[%clk 0:01:14.3]} 15. Bb5
{[%clk 0:02:15.1]} 15... Rf8 {[%clk 0:00:50.7]} 16. Bf1 {[%clk 0:02:16.3]} 16...
a6 {[%clk 0:00:50.9]} 17. c4 {[%clk 0:02:13.9]} 17... h6 {[%clk 0:00:51.3]} 18.
f4 {[%clk 0:02:12.9]} 18... Ned7 {[%clk 0:00:51.2]} 19. f5 {[%clk 0:02:14.2]}
19... Kh7 {[%clk 0:00:44.6]} 20. Bd3 {[%clk 0:02:12.3]} 20... Bd4+ {[%clk
0:00:42.4]} 21. Kh1 {[%clk 0:02:13]} 21... Ne5 {[%clk 0:00:34.9]} 22. Qd2 {[%clk
0:02:06.4]} 22... g5 {[%clk 0:00:18.5]} 23. Nxg5+ {[%clk 0:02:07.8]} 23... hxg5
{[%clk 0:00:19.8]} 24. f6+ {[%clk 0:02:08.8]} 24... Nxd3 {[%clk 0:00:15.6]} 25.
Qxd3+ {[%clk 0:02:01.3]} 25... Kh8 {[%clk 0:00:17.2]} 26. Qf5 {[%clk 0:02:03.2]}
26... Nd7 {[%clk 0:00:15.4]} 27. Re7 {[%clk 0:01:57.9]} 27... Rae8 {[%clk
0:00:15.4]} 28. Bxg5 {[%clk 0:01:58.8]} 28... Rxe7 {[%clk 0:00:06.3]} 29. fxe7
{[%clk 0:02:00.7]} 29... Rg8 {[%clk 0:00:08]} 30. Qxf7 {[%clk 0:02:02.1]} 30...
Qc8 {[%clk 0:00:05.2]} 31. Qh5+ {[%clk 0:01:55.4]} 31... Kg7 {[%clk 0:00:05.8]}
32. Rf1 {[%clk 0:01:57.3]} 32... Nf6 {[%clk 0:00:03.3]} 33. Qh6+ {[%clk
0:01:58.3]} 33... Kf7 {[%clk 0:00:04.8]} 34. Bxf6 {[%clk 0:01:59.7]} 1-0

[Event "*** Qualifier 3: Titled Tuesday 3|2 Blitz"]
[Site "Chess.com"]
[Date "2017.04.18"]
[Round "6"]
[White "XDPS"]
[Black "Spartakus1975"]
[Result "0-1"]
[WhiteElo "2541"]
[BlackElo "2574"]
[TimeControl "180+2"]
[EndTime "14:18:27 PDT"]
[Termination "Spartakus1975 won by resignation"]

1. d4 {[%clk 0:02:58.6]} 1... d5 {[%clk 0:02:59.8]} 2. c4 {[%clk 0:02:59.5]}
2... c6 {[%clk 0:03:01.4]} 3. Nf3 {[%clk 0:03:01.2]} 3... Nf6 {[%clk 0:03:02.1]}
4. Nbd2 {[%clk 0:03:02.7]} 4... Bf5 {[%clk 0:03:01.7]} 5. Nh4 {[%clk 0:03:02.7]}
5... Bc8 {[%clk 0:02:59.4]} 6. g3 {[%clk 0:03:02]} 6... g6 {[%clk 0:02:54.1]} 7.
Bg2 {[%clk 0:03:01.8]} 7... Bg7 {[%clk 0:02:55.2]} 8. O-O {[%clk 0:03:03.4]}
8... O-O {[%clk 0:02:56.1]} 9. b3 {[%clk 0:02:57]} 9... a5 {[%clk 0:02:52.6]}
10. Bb2 {[%clk 0:02:57.6]} 10... a4 {[%clk 0:02:53.8]} 11. Qc2 {[%clk
0:02:55.3]} 11... axb3 {[%clk 0:02:51.8]} 12. axb3 {[%clk 0:02:55.8]} 12... Na6
{[%clk 0:02:50]} 13. Bc3 {[%clk 0:02:56]} 13... Bg4 {[%clk 0:02:46]} 14. Rfe1
{[%clk 0:02:52.1]} 14... Qc7 {[%clk 0:02:28.8]} 15. h3 {[%clk 0:02:43.1]} 15...
Be6 {[%clk 0:02:28.4]} 16. Nhf3 {[%clk 0:02:43.3]} 16... Bf5 {[%clk 0:02:29.4]}
17. Qb2 {[%clk 0:02:43.8]} 17... Ne4 {[%clk 0:02:30.6]} 18. Nh4 {[%clk
0:02:41.4]} 18... Nxc3 {[%clk 0:02:30.3]} 19. Qxc3 {[%clk 0:02:39.5]} 19... c5
{[%clk 0:02:29]} 20. Nxf5 {[%clk 0:02:38.9]} 20... gxf5 {[%clk 0:02:30.2]} 21.
e3 {[%clk 0:02:39.5]} 21... dxc4 {[%clk 0:02:21]} 22. Qxc4 {[%clk 0:02:40.4]}
22... cxd4 {[%clk 0:02:17]} 23. exd4 {[%clk 0:02:36.2]} 23... Qxc4 {[%clk
0:02:13.3]} 24. Nxc4 {[%clk 0:02:36]} 24... Bxd4 {[%clk 0:02:14.6]} 25. Rad1
{[%clk 0:02:33.4]} 25... Bf6 {[%clk 0:02:13.3]} 26. Bxb7 {[%clk 0:02:26.6]}
26... Ra7 {[%clk 0:02:14.3]} 27. Bd5 {[%clk 0:02:24.8]} 27... Nb4 {[%clk
0:02:10.7]} 28. Ne3 {[%clk 0:02:21.5]} 28... e6 {[%clk 0:02:08]} 29. Bc4 {[%clk
0:02:22.5]} 29... Rd8 {[%clk 0:01:56]} 30. Rxd8+ {[%clk 0:02:22.1]} 30... Bxd8
{[%clk 0:01:57.5]} 31. Rd1 {[%clk 0:02:24]} 31... Bb6 {[%clk 0:01:58.2]} 32. Nf1
{[%clk 0:02:18.4]} 32... Ra2 {[%clk 0:01:57]} 33. Rd2 {[%clk 0:02:18.7]} 33...
Ra1 {[%clk 0:01:57.3]} 34. Kg2 {[%clk 0:02:19.8]} 34... Bc5 {[%clk 0:01:57.5]}
35. Nh2 {[%clk 0:02:16.5]} 35... Kg7 {[%clk 0:01:55.3]} 36. Nf3 {[%clk
0:02:17.5]} 36... Kf6 {[%clk 0:01:53.8]} 37. Re2 {[%clk 0:02:17.2]} 37... Bd6
{[%clk 0:01:48.1]} 38. Rd2 {[%clk 0:02:16.8]} 38... Ke7 {[%clk 0:01:48.6]} 39.
Nd4 {[%clk 0:02:15.3]} 39... Bc5 {[%clk 0:01:45.1]} 40. Nb5 {[%clk 0:02:03.2]}
40... Rc1 {[%clk 0:01:39.2]} 41. Nd4 {[%clk 0:01:44.5]} 41... Bxd4 {[%clk
0:01:18.7]} 42. Rxd4 {[%clk 0:01:43.8]} 42... Nc2 {[%clk 0:01:20.3]} 43. Rh4
{[%clk 0:01:39.9]} 43... Ne1+ {[%clk 0:01:20.6]} 44. Kf1 {[%clk 0:01:31.2]}
44... Nf3+ {[%clk 0:01:21]} 45. Kg2 {[%clk 0:01:32.9]} 45... Nxh4+ {[%clk
0:01:22.3]} 46. gxh4 {[%clk 0:01:34.8]} 46... Rc3 {[%clk 0:01:20.4]} 47. h5
{[%clk 0:01:33.7]} 47... h6 {[%clk 0:01:20.6]} 0-1

[Event "*** Qualifier 3: Titled Tuesday 3|2 Blitz"]
[Site "Chess.com"]
[Date "2017.04.18"]
[Round "6"]
[White "amazingoid"]
[Black "Gabix_94"]
[Result "0-1"]
[WhiteElo "2324"]
[BlackElo "2522"]
[TimeControl "180+2"]
[EndTime "14:18:40 PDT"]
[Termination "Gabix_94 won on time"]

1. e4 {[%clk 0:03:02]} 1... c5 {[%clk 0:03:01.3]} 2. Nc3 {[%clk 0:03:02.8]} 2...
a6 {[%clk 0:03:02.1]} 3. f4 {[%clk 0:02:53.9]} 3... b5 {[%clk 0:03:02.3]} 4. g3
{[%clk 0:02:54.8]} 4... Bb7 {[%clk 0:03:03.8]} 5. Bg2 {[%clk 0:02:56.1]} 5... e6
{[%clk 0:03:03.9]} 6. d3 {[%clk 0:02:55.5]} 6... d5 {[%clk 0:03:04.3]} 7. exd5
{[%clk 0:02:53.7]} 7... b4 {[%clk 0:03:04.7]} 8. Na4 {[%clk 0:02:41.3]} 8...
exd5 {[%clk 0:03:04]} 9. Nf3 {[%clk 0:02:40.3]} 9... Nf6 {[%clk 0:03:05]} 10.
O-O {[%clk 0:02:40.1]} 10... Be7 {[%clk 0:03:06.4]} 11. h3 {[%clk 0:02:35.9]}
11... O-O {[%clk 0:03:06.8]} 12. Be3 {[%clk 0:02:33.9]} 12... Nbd7 {[%clk
0:03:07.6]} 13. Ne5 {[%clk 0:02:33.9]} 13... Qc7 {[%clk 0:03:04.6]} 14. Nxd7
{[%clk 0:02:02.5]} 14... Nxd7 {[%clk 0:03:06.5]} 15. Kh2 {[%clk 0:01:57.2]}
15... Bc6 {[%clk 0:03:05.6]} 16. b3 {[%clk 0:01:58.3]} 16... Rae8 {[%clk
0:03:06.4]} 17. Rb1 {[%clk 0:01:53.2]} 17... Bb7 {[%clk 0:02:58.6]} 18. Bf2
{[%clk 0:01:42.1]} 18... Bd6 {[%clk 0:02:55.5]} 19. Qh5 {[%clk 0:01:41.2]} 19...
Nf6 {[%clk 0:02:51]} 20. Qf3 {[%clk 0:01:36.7]} 20... Re7 {[%clk 0:02:39.1]} 21.
Rfe1 {[%clk 0:01:37.3]} 21... Rfe8 {[%clk 0:02:40.3]} 22. Rxe7 {[%clk
0:01:37.9]} 22... Rxe7 {[%clk 0:02:42.2]} 23. Re1 {[%clk 0:01:37.9]} 23... h6
{[%clk 0:02:42]} 24. Rxe7 {[%clk 0:01:26.1]} 24... Bxe7 {[%clk 0:02:42.2]} 25.
Qe3 {[%clk 0:01:22.2]} 25... c4 {[%clk 0:02:14.5]} 26. Qb6 {[%clk 0:00:50.3]}
26... Qc8 {[%clk 0:02:05.3]} 27. dxc4 {[%clk 0:00:39.5]} 27... Nd7 {[%clk
0:01:50.1]} 28. Qa7 {[%clk 0:00:39.4]} 28... Bc6 {[%clk 0:01:42.5]} 29. cxd5
{[%clk 0:00:21.1]} 29... Bb5 {[%clk 0:01:36.4]} 30. Nb6 {[%clk 0:00:08.3]} 30...
Nxb6 {[%clk 0:01:36.7]} 31. Qxb6 {[%clk 0:00:06.8]} 31... Qxc2 {[%clk 0:01:36]}
32. g4 {[%clk 0:00:02.8]} 32... Kh7 {[%clk 0:01:34.8]} 33. Qd4 {[%clk 0:00:03]}
33... Bd3 {[%clk 0:01:34]} 34. Kg3 {[%clk 0:00:03.5]} 34... Bf6 {[%clk
0:01:34.8]} 0-1

[Event "*** Qualifier 3: Titled Tuesday 3|2 Blitz"]
[Site "Chess.com"]
[Date "2017.04.18"]
[Round "6"]
[White "Ilja_Semjonovs"]
[Black "olomi007"]
[Result "0-1"]
[WhiteElo "2201"]
[BlackElo "2490"]
[TimeControl "180+2"]
[EndTime "14:19:30 PDT"]
[Termination "olomi007 won by resignation"]

1. e4 {[%clk 0:03:02]} 1... c5 {[%clk 0:03:00.5]} 2. Nf3 {[%clk 0:03:02.5]} 2...
Nc6 {[%clk 0:03:01.7]} 3. Nc3 {[%clk 0:03:02.6]} 3... g6 {[%clk 0:03:01.9]} 4.
d4 {[%clk 0:02:53.5]} 4... cxd4 {[%clk 0:03:03.8]} 5. Nxd4 {[%clk 0:02:42.9]}
5... Bg7 {[%clk 0:03:04.2]} 6. Be3 {[%clk 0:02:41.8]} 6... Nf6 {[%clk
0:03:05.1]} 7. Bc4 {[%clk 0:02:41.9]} 7... O-O {[%clk 0:03:05.6]} 8. Bb3 {[%clk
0:02:29.9]} 8... Re8 {[%clk 0:03:05.3]} 9. O-O {[%clk 0:02:27.5]} 9... d6 {[%clk
0:03:04.9]} 10. h3 {[%clk 0:02:20.3]} 10... Na5 {[%clk 0:03:05.2]} 11. Qd2
{[%clk 0:02:16.7]} 11... b6 {[%clk 0:03:04.8]} 12. f3 {[%clk 0:02:11.5]} 12...
Bb7 {[%clk 0:03:02.5]} 13. Rad1 {[%clk 0:02:04.5]} 13... Rc8 {[%clk 0:03:01.6]}
14. Qf2 {[%clk 0:01:47.2]} 14... Nc4 {[%clk 0:03:01]} 15. Bxc4 {[%clk
0:01:43.4]} 15... Rxc4 {[%clk 0:03:00.7]} 16. Ndb5 {[%clk 0:01:33.8]} 16... Qb8
{[%clk 0:02:58.4]} 17. Rd2 {[%clk 0:01:21.8]} 17... a6 {[%clk 0:02:57.2]} 18.
Na3 {[%clk 0:01:21.9]} 18... Rb4 {[%clk 0:02:52.2]} 19. Bxb6 {[%clk 0:01:02]}
19... Rxb2 {[%clk 0:02:20.2]} 20. Bd4 {[%clk 0:00:31.1]} 20... Rb4 {[%clk
0:02:14.2]} 21. Bxf6 {[%clk 0:00:24.5]} 21... Bxf6 {[%clk 0:02:14.2]} 22. Nd5
{[%clk 0:00:25.2]} 22... Bxd5 {[%clk 0:02:14.4]} 23. Rxd5 {[%clk 0:00:21.8]}
23... Rb2 {[%clk 0:02:14.7]} 24. Kh1 {[%clk 0:00:20.8]} 24... Qb4 {[%clk
0:02:11]} 25. e5 {[%clk 0:00:07.8]} 25... Bxe5 {[%clk 0:02:10.3]} 26. Rd3 {[%clk
0:00:08.5]} 26... Bc3 {[%clk 0:01:55.3]} 27. Qe3 {[%clk 0:00:06]} 27... Rc8
{[%clk 0:01:55.3]} 28. Qxe7 {[%clk 0:00:03.6]} 28... Qxa3 {[%clk 0:01:50.9]} 29.
Rfd1 {[%clk 0:00:02.4]} 29... Rb6 {[%clk 0:01:31.8]} 30. Rxd6 {[%clk 0:00:02.3]}
30... Rxd6 {[%clk 0:01:32.4]} 31. Rxd6 {[%clk 0:00:03.2]} 31... Bb4 {[%clk
0:01:20.8]} 32. Rd8+ {[%clk 0:00:03.7]} 32... Rxd8 {[%clk 0:01:21.9]} 33. Qxd8+
{[%clk 0:00:05]} 33... Bf8 {[%clk 0:01:22.9]} 34. Qd4 {[%clk 0:00:05.9]} 34...
Qxa2 {[%clk 0:01:20.8]} 35. c4 {[%clk 0:00:06.9]} 35... Qa4 {[%clk 0:01:17.5]}
36. Qd5 {[%clk 0:00:07.3]} 36... Qb4 {[%clk 0:01:14.8]} 37. Kh2 {[%clk
0:00:07.3]} 37... a5 {[%clk 0:01:14.5]} 38. h4 {[%clk 0:00:08.6]} 38... h5
{[%clk 0:01:14.7]} 39. g4 {[%clk 0:00:08.5]} 39... Qd6+ {[%clk 0:01:13.1]} 40.
Qxd6 {[%clk 0:00:06.8]} 40... Bxd6+ {[%clk 0:01:15]} 0-1

[Event "*** Qualifier 3: Titled Tuesday 3|2 Blitz"]
[Site "Chess.com"]
[Date "2017.04.18"]
[Round "6"]
[White "CM_FM_IM_GM"]
[Black "FearlessKing64"]
[Result "1-0"]
[WhiteElo "2014"]
[BlackElo "2147"]
[TimeControl "180+2"]
[EndTime "14:19:30 PDT"]
[Termination "CM_FM_IM_GM won by resignation"]

1. d4 {[%clk 0:03:01.9]} 1... Nf6 {[%clk 0:02:36.1]} 2. c4 {[%clk 0:03:01.5]}
2... g6 {[%clk 0:02:36.6]} 3. Nf3 {[%clk 0:03:00.3]} 3... Bg7 {[%clk 0:02:37.2]}
4. g3 {[%clk 0:03:00.5]} 4... O-O {[%clk 0:02:37.3]} 5. Bg2 {[%clk 0:03:02]}
5... d5 {[%clk 0:02:38.2]} 6. O-O {[%clk 0:03:03.2]} 6... dxc4 {[%clk
0:02:39.1]} 7. Qc2 {[%clk 0:02:55.8]} 7... c5 {[%clk 0:02:37.5]} 8. Qxc4 {[%clk
0:02:53.7]} 8... cxd4 {[%clk 0:02:35.7]} 9. Rd1 {[%clk 0:02:54]} 9... Nc6 {[%clk
0:02:27.3]} 10. Nxd4 {[%clk 0:02:53.4]} 10... Nxd4 {[%clk 0:02:27.3]} 11. Qxd4
{[%clk 0:02:46.5]} 11... Qxd4 {[%clk 0:02:19.7]} 12. Rxd4 {[%clk 0:02:47]} 12...
Bg4 {[%clk 0:02:10.8]} 13. Nc3 {[%clk 0:02:33.2]} 13... Rad8 {[%clk 0:02:11.1]}
14. Be3 {[%clk 0:02:30.7]} 14... Rxd4 {[%clk 0:01:56.5]} 15. Bxd4 {[%clk
0:02:31.3]} 15... b6 {[%clk 0:01:58]} 16. Rd1 {[%clk 0:02:29]} 16... Rd8 {[%clk
0:01:56.9]} 17. h3 {[%clk 0:02:28]} 17... Be6 {[%clk 0:01:51.8]} 18. a3 {[%clk
0:02:13.6]} 18... Ne8 {[%clk 0:01:47.2]} 19. Bxg7 {[%clk 0:02:11.6]} 19... Rxd1+
{[%clk 0:01:44.8]} 20. Nxd1 {[%clk 0:02:12.5]} 20... Kxg7 {[%clk 0:01:43.7]} 21.
e3 {[%clk 0:02:04.9]} 21... Nc7 {[%clk 0:01:42.3]} 22. Kf1 {[%clk 0:02:05]}
22... Bc4+ {[%clk 0:01:42.2]} 23. Ke1 {[%clk 0:02:05.8]} 23... Bd5 {[%clk
0:01:38.5]} 24. Bxd5 {[%clk 0:02:03.9]} 24... Nxd5 {[%clk 0:01:40.4]} 25. Kd2
{[%clk 0:02:05.4]} 25... Kf6 {[%clk 0:01:40.8]} 26. Nc3 {[%clk 0:02:06.2]} 26...
Nxc3 {[%clk 0:01:41.6]} 27. Kxc3 {[%clk 0:02:08.1]} 27... Ke6 {[%clk 0:01:41.8]}
28. Kd4 {[%clk 0:02:05.9]} 28... Kd6 {[%clk 0:01:42.2]} 29. f4 {[%clk 0:02:07]}
29... f5 {[%clk 0:01:33.9]} 30. a4 {[%clk 0:02:06]} 30... a6 {[%clk 0:01:32.9]}
31. b4 {[%clk 0:02:05.5]} 31... a5 {[%clk 0:01:16.6]} 32. b5 {[%clk 0:02:00.3]}
32... Ke6 {[%clk 0:01:02.3]} 33. e4 {[%clk 0:01:47.7]} 33... Kd6 {[%clk
0:00:56.1]} 34. exf5 {[%clk 0:01:40]} 34... gxf5 {[%clk 0:00:56.5]} 35. g4
{[%clk 0:01:39.8]} 35... fxg4 {[%clk 0:00:48.2]} 36. hxg4 {[%clk 0:01:41.7]}
36... Ke6 {[%clk 0:00:48.4]} 37. f5+ {[%clk 0:01:29.9]} 37... Kf6 {[%clk
0:00:47.9]} 38. Kd5 {[%clk 0:01:30.3]} 38... h6 {[%clk 0:00:25]} 39. Kc6 {[%clk
0:01:21.8]} 39... h5 {[%clk 0:00:25.6]} 40. gxh5 {[%clk 0:01:19.9]} 40... Kxf5
{[%clk 0:00:26.7]} 41. h6 {[%clk 0:01:18.7]} 41... Kg6 {[%clk 0:00:24.4]} 42.
Kxb6 {[%clk 0:01:17.6]} 42... Kxh6 {[%clk 0:00:21.3]} 43. Kc5 {[%clk 0:01:17.7]}
1-0

[Event "*** Qualifier 3: Titled Tuesday 3|2 Blitz"]
[Site "Chess.com"]
[Date "2017.04.18"]
[Round "6"]
[White "Fandorine"]
[Black "iturrizaga"]
[Result "1-0"]
[WhiteElo "2702"]
[BlackElo "2641"]
[TimeControl "180+2"]
[EndTime "14:19:39 PDT"]
[Termination "Fandorine won by checkmate"]

1. e4 {[%clk 0:03:02]} 1... c5 {[%clk 0:03:00.9]} 2. Nf3 {[%clk 0:03:02.7]} 2...
g6 {[%clk 0:03:02.6]} 3. c3 {[%clk 0:02:52.1]} 3... Nf6 {[%clk 0:03:03]} 4. e5
{[%clk 0:02:51.8]} 4... Nd5 {[%clk 0:03:04.5]} 5. d4 {[%clk 0:02:52.3]} 5...
cxd4 {[%clk 0:03:06.4]} 6. Qxd4 {[%clk 0:02:52.2]} 6... Nc7 {[%clk 0:03:07.2]}
7. Bc4 {[%clk 0:02:47.3]} 7... Nc6 {[%clk 0:03:01.2]} 8. Qh4 {[%clk 0:02:47.1]}
8... d5 {[%clk 0:03:01.2]} 9. exd6 {[%clk 0:02:46.9]} 9... Qxd6 {[%clk
0:03:02.3]} 10. O-O {[%clk 0:02:47.3]} 10... Be6 {[%clk 0:02:59.7]} 11. Bf4
{[%clk 0:02:42.5]} 11... Qc5 {[%clk 0:03:00.1]} 12. Bb3 {[%clk 0:02:37]} 12...
Nd5 {[%clk 0:02:34.1]} 13. Bg3 {[%clk 0:02:31]} 13... Bg7 {[%clk 0:02:16.7]} 14.
Nbd2 {[%clk 0:02:20.8]} 14... h6 {[%clk 0:02:06.3]} 15. Rfe1 {[%clk 0:01:48.7]}
15... O-O {[%clk 0:01:56.6]} 16. Rxe6 {[%clk 0:01:32.8]} 16... fxe6 {[%clk
0:01:56.9]} 17. Re1 {[%clk 0:01:33.3]} 17... e5 {[%clk 0:00:34]} 18. Qe4 {[%clk
0:00:58.9]} 18... e6 {[%clk 0:00:34.7]} 19. Qxg6 {[%clk 0:01:00.1]} 19... Rae8
{[%clk 0:00:34.1]} 20. Nc4 {[%clk 0:00:49.3]} 20... Nf4 {[%clk 0:00:31.2]} 21.
Bxf4 {[%clk 0:00:46]} 21... exf4 {[%clk 0:00:21]} 22. Rxe6 {[%clk 0:00:44.9]}
22... Rxe6 {[%clk 0:00:22]} 23. Qxe6+ {[%clk 0:00:46.3]} 23... Kh8 {[%clk
0:00:23.5]} 24. Nd6 {[%clk 0:00:43]} 24... Nd8 {[%clk 0:00:24.7]} 25. Qe7 {[%clk
0:00:36]} 25... b6 {[%clk 0:00:15.5]} 26. h3 {[%clk 0:00:37.2]} 26... Qh5 {[%clk
0:00:09.1]} 27. Bc2 {[%clk 0:00:17.5]} 27... Nc6 {[%clk 0:00:08.4]} 28. Qe4
{[%clk 0:00:17.7]} 28... Kg8 {[%clk 0:00:03]} 29. Qh7# {[%clk 0:00:18]} 1-0

[Event "*** Qualifier 3: Titled Tuesday 3|2 Blitz"]
[Site "Chess.com"]
[Date "2017.04.18"]
[Round "6"]
[White "ka1ser64"]
[Black "Rogue_King"]
[Result "1-0"]
[WhiteElo "2339"]
[BlackElo "2124"]
[TimeControl "180+2"]
[EndTime "14:20:08 PDT"]
[Termination "ka1ser64 won by resignation"]

1. d4 {[%clk 0:02:45.6]} 1... Nf6 {[%clk 0:03:00.4]} 2. c4 {[%clk 0:02:46.9]}
2... g6 {[%clk 0:03:01.6]} 3. Nc3 {[%clk 0:02:48.6]} 3... Bg7 {[%clk 0:03:03.2]}
4. e4 {[%clk 0:02:50]} 4... O-O {[%clk 0:03:04.8]} 5. Nf3 {[%clk 0:02:51.7]}
5... d6 {[%clk 0:03:06.2]} 6. Be2 {[%clk 0:02:53.5]} 6... e5 {[%clk 0:03:07.7]}
7. O-O {[%clk 0:02:55.3]} 7... Nc6 {[%clk 0:03:09.2]} 8. d5 {[%clk 0:02:57.1]}
8... Ne7 {[%clk 0:03:10.6]} 9. Ne1 {[%clk 0:02:58.9]} 9... Nd7 {[%clk 0:03:12]}
10. Be3 {[%clk 0:03:00.7]} 10... f5 {[%clk 0:03:12.7]} 11. f3 {[%clk 0:03:02.4]}
11... f4 {[%clk 0:03:14.2]} 12. Bf2 {[%clk 0:03:04.2]} 12... g5 {[%clk
0:03:15.4]} 13. Rc1 {[%clk 0:03:06]} 13... h5 {[%clk 0:03:15.8]} 14. c5 {[%clk
0:03:05.5]} 14... Nxc5 {[%clk 0:03:15.9]} 15. b4 {[%clk 0:03:06.4]} 15... Nd7
{[%clk 0:03:14.7]} 16. Nb5 {[%clk 0:03:07.5]} 16... Nf6 {[%clk 0:02:43.3]} 17.
Nxc7 {[%clk 0:03:07.8]} 17... g4 {[%clk 0:02:40.7]} 18. Nxa8 {[%clk 0:02:41]}
18... Ng6 {[%clk 0:02:34.8]} 19. Nc7 {[%clk 0:02:37.6]} 19... g3 {[%clk
0:02:08.7]} 20. Ne6 {[%clk 0:02:35.8]} 20... Bxe6 {[%clk 0:02:03.9]} 21. dxe6
{[%clk 0:02:35.1]} 21... gxf2+ {[%clk 0:02:04.9]} 22. Rxf2 {[%clk 0:02:36.1]}
22... d5 {[%clk 0:01:31.9]} 23. exd5 {[%clk 0:02:33.2]} 23... e4 {[%clk
0:01:22.2]} 24. d6 {[%clk 0:02:27.8]} 24... Qb6 {[%clk 0:01:07.8]} 25. e7 {[%clk
0:02:24.9]} 25... Ra8 {[%clk 0:00:56.7]} 26. Rc5 {[%clk 0:02:23.8]} 26... Nd7
{[%clk 0:00:51.5]} 27. Qd5+ {[%clk 0:02:15.6]} 27... Kh7 {[%clk 0:00:47.1]} 28.
Qxh5+ {[%clk 0:02:16.2]} 28... Bh6 {[%clk 0:00:48.3]} 29. Rg5 {[%clk 0:01:51]}
29... Qxd6 {[%clk 0:00:39.8]} 30. fxe4 {[%clk 0:01:47.7]} 30... Re8 {[%clk
0:00:23.9]} 31. Bb5 {[%clk 0:01:21.9]} 31... Rxe7 {[%clk 0:00:22.6]} 32. Nd3
{[%clk 0:00:50.9]} 32... Rg7 {[%clk 0:00:12.1]} 33. Rd5 {[%clk 0:00:51]} 33...
Qf6 {[%clk 0:00:07.5]} 34. Bxd7 {[%clk 0:00:49.1]} 34... Ne7 {[%clk 0:00:04.5]}
35. Bf5+ {[%clk 0:00:48.9]} 35... Nxf5 {[%clk 0:00:05.2]} 36. Qxf5+ {[%clk
0:00:49.4]} 36... Qxf5 {[%clk 0:00:06.9]} 37. exf5 {[%clk 0:00:49.6]} 37... Rc7
{[%clk 0:00:02.7]} 38. h3 {[%clk 0:00:46.2]} 38... Rc3 {[%clk 0:00:02.8]} 39.
Nxf4 {[%clk 0:00:46.4]} 39... Bg7 {[%clk 0:00:03.1]} 40. Ne6 {[%clk 0:00:45]}
40... Bf6 {[%clk 0:00:04.2]} 41. Rd7+ {[%clk 0:00:44.2]} 41... Kg8 {[%clk
0:00:04.4]} 42. Rxb7 {[%clk 0:00:43.9]} 42... Rc1+ {[%clk 0:00:05.4]} 43. Kh2
{[%clk 0:00:44.4]} 43... Be5+ {[%clk 0:00:06.6]} 44. g3 {[%clk 0:00:45.7]} 44...
Rc3 {[%clk 0:00:08.1]} 45. Nf4 {[%clk 0:00:45.4]} 45... Rd3 {[%clk 0:00:07.8]}
1-0